[Event "*** Titled Tuesday Blitz"]
[Site "Chess.com"]
[Date "2021.03.16"]
[Round "4"]
[White "Oligan22"]
[Black "c_r_e_e_p_e_r"]
[Result "1-0"]
[WhiteElo "2511"]
[BlackElo "2353"]
[TimeControl "180+1"]
[EndTime "10:38:19 PDT"]
[Termination "Oligan22 won on time"]

1. e4 {[%clk 0:03:00.9]} 1... c5 {[%clk 0:03:00.3]} 2. Nf3 {[%clk 0:03:00.5]}
2... e6 {[%clk 0:03:00.3]} 3. d4 {[%clk 0:03:00]} 3... cxd4 {[%clk 0:03:00.8]}
4. Nxd4 {[%clk 0:02:59.4]} 4... a6 {[%clk 0:03:01.4]} 5. Nc3 {[%clk 0:02:58.7]}
5... Qc7 {[%clk 0:03:01.3]} 6. Bd3 {[%clk 0:02:57.9]} 6... Nf6 {[%clk
0:03:00.7]} 7. Qe2 {[%clk 0:02:56.2]} 7... d6 {[%clk 0:02:57.5]} 8. f4 {[%clk
0:02:54.8]} 8... Nbd7 {[%clk 0:02:54.9]} 9. g4 {[%clk 0:02:51.3]} 9... Nc5
{[%clk 0:02:54.3]} 10. g5 {[%clk 0:02:48.1]} 10... Nfd7 {[%clk 0:02:54]} 11. Be3
{[%clk 0:02:44.1]} 11... b5 {[%clk 0:02:52.7]} 12. a3 {[%clk 0:02:41.5]} 12...
Bb7 {[%clk 0:02:52.6]} 13. O-O-O {[%clk 0:02:36.8]} 13... O-O-O {[%clk
0:02:44.7]} 14. h4 {[%clk 0:02:27.9]} 14... g6 {[%clk 0:02:41.6]} 15. h5 {[%clk
0:02:25.5]} 15... Be7 {[%clk 0:02:34.6]} 16. Kb1 {[%clk 0:02:18.6]} 16... Kb8
{[%clk 0:02:34.1]} 17. Rh2 {[%clk 0:02:05.4]} 17... Rc8 {[%clk 0:02:27.7]} 18.
Rdh1 {[%clk 0:01:58.2]} 18... Rhf8 {[%clk 0:02:27.8]} 19. Nb3 {[%clk 0:01:48.2]}
19... Nb6 {[%clk 0:01:27.8]} 20. Na5 {[%clk 0:01:23.2]} 20... Ba8 {[%clk
0:01:28]} 21. Bd4 {[%clk 0:01:05.8]} 21... e5 {[%clk 0:01:04.6]} 22. Be3 {[%clk
0:01:03]} 22... d5 {[%clk 0:00:55.6]} 23. exd5 {[%clk 0:00:46.2]} 23... Nxd5
{[%clk 0:00:43.1]} 24. Nxd5 {[%clk 0:00:46.4]} 24... Bxd5 {[%clk 0:00:38.7]} 25.
Bxc5 {[%clk 0:00:32.5]} 25... Bxc5 {[%clk 0:00:30.7]} 26. Nb3 {[%clk 0:00:32.5]}
26... Bxh1 {[%clk 0:00:27.6]} 27. Rxh1 {[%clk 0:00:33.4]} 27... exf4 {[%clk
0:00:24.2]} 28. Qf3 {[%clk 0:00:29.1]} 28... Be3 {[%clk 0:00:20.4]} 29. hxg6
{[%clk 0:00:21.5]} 29... hxg6 {[%clk 0:00:19.6]} 30. Rh7 {[%clk 0:00:21.7]}
30... Rh8 {[%clk 0:00:19.3]} 31. Bxg6 {[%clk 0:00:21.2]} 31... Rxh7 {[%clk
0:00:18]} 32. Bxh7 {[%clk 0:00:22.1]} 32... Rh8 {[%clk 0:00:15.8]} 33. Bd3
{[%clk 0:00:20.3]} 33... Qe5 {[%clk 0:00:14.4]} 34. Qc6 {[%clk 0:00:19.7]} 34...
Qxg5 {[%clk 0:00:01.9]} 35. Be4 {[%clk 0:00:19.4]} 1-0

[Event "*** Titled Tuesday Blitz"]
[Site "Chess.com"]
[Date "2021.03.16"]
[Round "4"]
[White "anon132639"]
[Black "Msb2"]
[Result "0-1"]
[WhiteElo "2751"]
[BlackElo "2917"]
[TimeControl "180+1"]
[EndTime "10:38:22 PDT"]
[Termination "Msb2 won by checkmate"]

1. d4 {[%clk 0:03:00.9]} 1... d5 {[%clk 0:03:00]} 2. c4 {[%clk 0:02:58.8]} 2...
e6 {[%clk 0:03:00.2]} 3. Nc3 {[%clk 0:02:52.3]} 3... Nf6 {[%clk 0:02:59.9]} 4.
cxd5 {[%clk 0:02:52.7]} 4... exd5 {[%clk 0:03:00.8]} 5. Bg5 {[%clk 0:02:52.8]}
5... c6 {[%clk 0:03:01.4]} 6. Qc2 {[%clk 0:02:53.1]} 6... h6 {[%clk 0:03:01.5]}
7. Bh4 {[%clk 0:02:52.6]} 7... g6 {[%clk 0:03:01.9]} 8. e3 {[%clk 0:02:44.2]}
8... Bf5 {[%clk 0:03:01.3]} 9. Bd3 {[%clk 0:02:44.4]} 9... Bxd3 {[%clk
0:03:01.6]} 10. Qxd3 {[%clk 0:02:45.3]} 10... Nbd7 {[%clk 0:03:02.2]} 11. Nf3
{[%clk 0:02:42.2]} 11... Be7 {[%clk 0:03:02.5]} 12. O-O {[%clk 0:02:42.3]} 12...
O-O {[%clk 0:03:02.7]} 13. Ne5 {[%clk 0:02:34.1]} 13... Nxe5 {[%clk 0:03:00.3]}
14. dxe5 {[%clk 0:02:35]} 14... Nd7 {[%clk 0:03:01]} 15. Bxe7 {[%clk 0:02:35.9]}
15... Qxe7 {[%clk 0:03:01.9]} 16. f4 {[%clk 0:02:35.8]} 16... Kg7 {[%clk
0:02:51.3]} 17. e4 {[%clk 0:02:21.4]} 17... Nc5 {[%clk 0:02:47.4]} 18. Qe3
{[%clk 0:02:19.7]} 18... Nxe4 {[%clk 0:02:43.1]} 19. Nxe4 {[%clk 0:02:20.6]}
19... dxe4 {[%clk 0:02:44]} 20. Qxe4 {[%clk 0:02:21.2]} 20... Rad8 {[%clk
0:02:35]} 21. f5 {[%clk 0:02:09.7]} 21... Qc5+ {[%clk 0:02:30.7]} 22. Kh1 {[%clk
0:02:09.5]} 22... Rd4 {[%clk 0:02:26.7]} 23. Qf3 {[%clk 0:01:39.9]} 23... Qd5
{[%clk 0:02:09.7]} 24. Qg3 {[%clk 0:01:32]} 24... Rd3 {[%clk 0:02:08.3]} 25. Qh4
{[%clk 0:00:46]} 25... g5 {[%clk 0:01:55.4]} 26. Qe1 {[%clk 0:00:30.6]} 26...
Rd2 {[%clk 0:01:50.7]} 27. Qg3 {[%clk 0:00:27.1]} 27... Qd3 {[%clk 0:01:27]} 28.
Qg4 {[%clk 0:00:22.8]} 28... Qe2 {[%clk 0:01:20.3]} 29. f6+ {[%clk 0:00:10.4]}
29... Kg8 {[%clk 0:01:20.5]} 30. Qh3 {[%clk 0:00:06.9]} 30... Rfd8 {[%clk
0:01:08]} 31. Rg1 {[%clk 0:00:06.1]} 31... h5 {[%clk 0:01:01.7]} 32. Qf5 {[%clk
0:00:05.5]} 32... Qg4 {[%clk 0:01:01.5]} 33. Qxg4 {[%clk 0:00:02.5]} 33... hxg4
{[%clk 0:01:02.4]} 34. Rge1 {[%clk 0:00:02.4]} 34... Rxb2 {[%clk 0:01:00.8]} 35.
e6 {[%clk 0:00:03]} 35... fxe6 {[%clk 0:01:01.6]} 36. Rxe6 {[%clk 0:00:03.5]}
36... Kf7 {[%clk 0:01:01.7]} 37. Rae1 {[%clk 0:00:02.9]} 37... Rdd2 {[%clk
0:01:01.9]} 38. Re7+ {[%clk 0:00:02.5]} 38... Kg6 {[%clk 0:00:55]} 39. f7 {[%clk
0:00:03.4]} 39... Rf2 {[%clk 0:00:50.3]} 40. R7e6+ {[%clk 0:00:01.9]} 40... Kg7
{[%clk 0:00:50.3]} 41. Re7 {[%clk 0:00:02]} 41... Rxf7 {[%clk 0:00:50.4]} 42.
Re8 {[%clk 0:00:02.5]} 42... Rxa2 {[%clk 0:00:50]} 43. Kg1 {[%clk 0:00:02.4]}
43... Raf2 {[%clk 0:00:49]} 44. R8e5 {[%clk 0:00:03.3]} 44... R2f5 {[%clk
0:00:48.9]} 45. Re6 {[%clk 0:00:03.8]} 45... R5f6 {[%clk 0:00:49.3]} 46. R6e5
{[%clk 0:00:04.2]} 46... Kg6 {[%clk 0:00:50]} 47. R5e4 {[%clk 0:00:04.7]} 47...
a5 {[%clk 0:00:49.5]} 48. R1e2 {[%clk 0:00:04.9]} 48... Rf1# {[%clk 0:00:49.4]}
0-1

[Event "*** Titled Tuesday Blitz"]
[Site "Chess.com"]
[Date "2021.03.16"]
[Round "4"]
[White "Ranindu2003"]
[Black "DinaBelenkaya"]
[Result "1-0"]
[WhiteElo "2593"]
[BlackElo "2376"]
[TimeControl "180+1"]
[EndTime "10:38:23 PDT"]
[Termination "Ranindu2003 won by resignation"]

1. d4 {[%clk 0:03:00.9]} 1... d5 {[%clk 0:02:59.8]} 2. Bf4 {[%clk 0:03:01.3]}
2... Nf6 {[%clk 0:02:56.7]} 3. e3 {[%clk 0:03:01.7]} 3... c5 {[%clk 0:02:56.9]}
4. c3 {[%clk 0:03:01.3]} 4... Nc6 {[%clk 0:02:56.1]} 5. Nd2 {[%clk 0:03:00.8]}
5... Qb6 {[%clk 0:02:51.8]} 6. dxc5 {[%clk 0:02:21]} 6... Qxc5 {[%clk
0:02:50.5]} 7. Ngf3 {[%clk 0:02:19.7]} 7... e6 {[%clk 0:02:48.6]} 8. Bd3 {[%clk
0:02:17.7]} 8... Qe7 {[%clk 0:02:41.1]} 9. e4 {[%clk 0:02:08.3]} 9... dxe4
{[%clk 0:02:15.2]} 10. Nxe4 {[%clk 0:02:09.2]} 10... Nxe4 {[%clk 0:02:14.4]} 11.
Bxe4 {[%clk 0:02:10.1]} 11... e5 {[%clk 0:01:57.4]} 12. Bg5 {[%clk 0:01:44.8]}
12... f6 {[%clk 0:01:54.4]} 13. Be3 {[%clk 0:01:43.7]} 13... Be6 {[%clk
0:01:47.2]} 14. O-O {[%clk 0:01:38.1]} 14... Qc7 {[%clk 0:01:39.3]} 15. Qc2
{[%clk 0:01:31.7]} 15... Be7 {[%clk 0:01:37.5]} 16. Bxh7 {[%clk 0:01:27.9]}
16... O-O-O {[%clk 0:01:32.8]} 17. Bf5 {[%clk 0:01:25.6]} 17... Bxf5 {[%clk
0:01:18.4]} 18. Qxf5+ {[%clk 0:01:26.5]} 18... Kb8 {[%clk 0:01:19.2]} 19. Rad1
{[%clk 0:01:11.8]} 19... Bd6 {[%clk 0:01:12.7]} 20. h3 {[%clk 0:01:05.7]} 20...
Qf7 {[%clk 0:01:11.9]} 21. Ng5 {[%clk 0:00:40.7]} 21... Qh5 {[%clk 0:01:11.4]}
22. Qe6 {[%clk 0:00:41.3]} 22... fxg5 {[%clk 0:00:59.3]} 23. Rxd6 {[%clk
0:00:38.9]} 23... Rxd6 {[%clk 0:00:34.7]} 24. Qxd6+ {[%clk 0:00:39.8]} 24... Ka8
{[%clk 0:00:35.3]} 25. Qd7 {[%clk 0:00:39.3]} 25... Qe2 {[%clk 0:00:22.8]} 26.
Qd2 {[%clk 0:00:32.7]} 26... Qc4 {[%clk 0:00:19.9]} 27. b3 {[%clk 0:00:24.5]}
27... Qe6 {[%clk 0:00:18.6]} 28. Bxg5 {[%clk 0:00:24.5]} 28... e4 {[%clk
0:00:19.2]} 29. Bf4 {[%clk 0:00:20.8]} 29... Rf8 {[%clk 0:00:17.1]} 30. Qe3
{[%clk 0:00:18.8]} 30... Ne7 {[%clk 0:00:17]} 31. Re1 {[%clk 0:00:16.6]} 31...
Nd5 {[%clk 0:00:17.3]} 32. Qc5 {[%clk 0:00:04.6]} 32... Nxf4 {[%clk 0:00:17.4]}
33. Qxf8+ {[%clk 0:00:03.6]} 1-0

[Event "*** Titled Tuesday Blitz"]
[Site "Chess.com"]
[Date "2021.03.16"]
[Round "4"]
[White "organdzievhren"]
[Black "abeljusto"]
[Result "1-0"]
[WhiteElo "2428"]
[BlackElo "2184"]
[TimeControl "180+1"]
[EndTime "10:38:23 PDT"]
[Termination "organdzievhren won on time"]

1. e4 {[%clk 0:03:00.9]} 1... Nf6 {[%clk 0:03:00.9]} 2. Nc3 {[%clk 0:02:58.5]}
2... d5 {[%clk 0:02:58.8]} 3. e5 {[%clk 0:02:58.7]} 3... Ne4 {[%clk 0:02:58.6]}
4. Nce2 {[%clk 0:02:51.5]} 4... d4 {[%clk 0:02:56.7]} 5. Ng3 {[%clk 0:02:48.8]}
5... Nxg3 {[%clk 0:02:54.1]} 6. hxg3 {[%clk 0:02:48.4]} 6... c5 {[%clk
0:02:52.7]} 7. Bc4 {[%clk 0:02:48.1]} 7... Nc6 {[%clk 0:02:50.9]} 8. Nf3 {[%clk
0:02:45]} 8... Bf5 {[%clk 0:02:42.7]} 9. d3 {[%clk 0:02:37.9]} 9... e6 {[%clk
0:02:37.4]} 10. Bf4 {[%clk 0:02:32.6]} 10... Be7 {[%clk 0:02:34.8]} 11. Qd2
{[%clk 0:02:28.8]} 11... a6 {[%clk 0:02:30.8]} 12. a4 {[%clk 0:02:25.2]} 12...
Qa5 {[%clk 0:02:25.7]} 13. Nh4 {[%clk 0:02:14.5]} 13... Qxd2+ {[%clk 0:02:23.8]}
14. Kxd2 {[%clk 0:02:11.8]} 14... Bxh4 {[%clk 0:01:49.2]} 15. gxh4 {[%clk
0:02:09.1]} 15... h5 {[%clk 0:01:46.9]} 16. a5 {[%clk 0:02:07.8]} 16... O-O-O
{[%clk 0:01:40.5]} 17. f3 {[%clk 0:02:07.6]} 17... f6 {[%clk 0:01:22.4]} 18.
Rhe1 {[%clk 0:01:57.5]} 18... fxe5 {[%clk 0:01:21.1]} 19. Bxe5 {[%clk
0:01:56.9]} 19... Rh6 {[%clk 0:01:13.7]} 20. Bf4 {[%clk 0:01:50.1]} 20... Rg6
{[%clk 0:01:13.2]} 21. Bg5 {[%clk 0:01:49.9]} 21... Rf8 {[%clk 0:01:05.5]} 22.
Re2 {[%clk 0:01:44.2]} 22... Kd7 {[%clk 0:01:00.1]} 23. c3 {[%clk 0:01:43.1]}
23... e5 {[%clk 0:00:58.8]} 24. Bd5 {[%clk 0:01:35.3]} 24... dxc3+ {[%clk
0:00:42]} 25. bxc3 {[%clk 0:01:34.6]} 25... Kd6 {[%clk 0:00:31.7]} 26. Bxc6
{[%clk 0:01:28.5]} 26... bxc6 {[%clk 0:00:32.6]} 27. Rb1 {[%clk 0:01:25.8]}
27... c4 {[%clk 0:00:26.1]} 28. Rb6 {[%clk 0:01:16.9]} 28... cxd3 {[%clk
0:00:25.4]} 29. Re1 {[%clk 0:01:16.9]} 29... Ra8 {[%clk 0:00:19.7]} 30. Rb7
{[%clk 0:01:07.6]} 30... Kd5 {[%clk 0:00:16.8]} 31. c4+ {[%clk 0:01:04]} 31...
Kxc4 {[%clk 0:00:13.9]} 32. Rc1+ {[%clk 0:01:04]} 32... Kd5 {[%clk 0:00:13.3]}
33. Rc3 {[%clk 0:00:55.2]} 33... c5 {[%clk 0:00:13]} 34. Rc7 {[%clk 0:00:47.5]}
34... Rc6 {[%clk 0:00:10.6]} 35. Rxg7 {[%clk 0:00:45.8]} 35... c4 {[%clk
0:00:09.5]} 36. Rb7 {[%clk 0:00:42.7]} 36... e4 {[%clk 0:00:07.2]} 37. fxe4+
{[%clk 0:00:39.4]} 37... Bxe4 {[%clk 0:00:08.1]} 38. Rd7+ {[%clk 0:00:36.9]}
38... Ke6 {[%clk 0:00:07.1]} 39. Re7+ {[%clk 0:00:35.4]} 39... Kd5 {[%clk
0:00:06.1]} 40. Bf4 {[%clk 0:00:31.6]} 40... Rg8 {[%clk 0:00:05.1]} 41. Re5+
{[%clk 0:00:31.1]} 41... Kd6 {[%clk 0:00:02.8]} 42. Rg5+ {[%clk 0:00:31.1]} 1-0

[Event "*** Titled Tuesday Blitz"]
[Site "Chess.com"]
[Date "2021.03.16"]
[Round "4"]
[White "vinniethepooh"]
[Black "rynos0411"]
[Result "0-1"]
[WhiteElo "2694"]
[BlackElo "2509"]
[TimeControl "180+1"]
[EndTime "10:38:26 PDT"]
[Termination "rynos0411 won by resignation"]

1. d4 {[%clk 0:03:00.9]} 1... Nf6 {[%clk 0:02:58.5]} 2. c4 {[%clk 0:03:01.3]}
2... e6 {[%clk 0:02:55.3]} 3. Nc3 {[%clk 0:03:01.7]} 3... d5 {[%clk 0:02:55.2]}
4. cxd5 {[%clk 0:03:01.6]} 4... Nxd5 {[%clk 0:02:54.2]} 5. e4 {[%clk 0:03:01.6]}
5... Nxc3 {[%clk 0:02:54]} 6. bxc3 {[%clk 0:03:02.5]} 6... c5 {[%clk 0:02:54.4]}
7. Nf3 {[%clk 0:03:03.2]} 7... cxd4 {[%clk 0:02:54.6]} 8. cxd4 {[%clk
0:03:04.1]} 8... Bb4+ {[%clk 0:02:54.7]} 9. Bd2 {[%clk 0:03:04.7]} 9... Bxd2+
{[%clk 0:02:55.4]} 10. Qxd2 {[%clk 0:03:05.6]} 10... O-O {[%clk 0:02:55.8]} 11.
Bc4 {[%clk 0:03:05]} 11... Nd7 {[%clk 0:02:54.6]} 12. O-O {[%clk 0:03:04.7]}
12... b6 {[%clk 0:02:54.8]} 13. Rac1 {[%clk 0:03:00.8]} 13... Bb7 {[%clk
0:02:55]} 14. Qe3 {[%clk 0:03:01.3]} 14... Rc8 {[%clk 0:02:54.7]} 15. h3 {[%clk
0:02:58.3]} 15... Qe7 {[%clk 0:02:51.8]} 16. Rfd1 {[%clk 0:02:47.1]} 16... Rfd8
{[%clk 0:02:46.8]} 17. Bb5 {[%clk 0:02:06.9]} 17... Nf6 {[%clk 0:02:35.4]} 18.
Bd3 {[%clk 0:02:06.6]} 18... h6 {[%clk 0:02:28.5]} 19. Bb1 {[%clk 0:01:38.7]}
19... Qb4 {[%clk 0:02:10.6]} 20. e5 {[%clk 0:01:17.2]} 20... Nd7 {[%clk
0:02:00.9]} 21. Nh4 {[%clk 0:00:48.7]} 21... Nf8 {[%clk 0:01:56.1]} 22. Rxc8
{[%clk 0:00:28.9]} 22... Rxc8 {[%clk 0:01:57]} 23. Be4 {[%clk 0:00:24.2]} 23...
Bxe4 {[%clk 0:00:47.8]} 24. Qxe4 {[%clk 0:00:25.1]} 24... Qb2 {[%clk 0:00:47]}
25. a4 {[%clk 0:00:18.5]} 25... Rc1 {[%clk 0:00:44.3]} 26. Rxc1 {[%clk
0:00:16.2]} 26... Qxc1+ {[%clk 0:00:45.2]} 27. Kh2 {[%clk 0:00:17.1]} 27... Qc4
{[%clk 0:00:43.4]} 28. Nf3 {[%clk 0:00:05.7]} 28... Qxa4 {[%clk 0:00:42.2]} 29.
Qa8 {[%clk 0:00:06.1]} 29... Qd7 {[%clk 0:00:41.1]} 30. Kg3 {[%clk 0:00:05.2]}
30... b5 {[%clk 0:00:40.5]} 31. Kf4 {[%clk 0:00:03.5]} 31... Qe7 {[%clk
0:00:36.5]} 32. Ke3 {[%clk 0:00:03.6]} 32... Kh7 {[%clk 0:00:36.7]} 33. Nd2
{[%clk 0:00:03.4]} 33... Ng6 {[%clk 0:00:36.4]} 34. Qb8 {[%clk 0:00:02.9]} 34...
Qg5+ {[%clk 0:00:35.8]} 35. Kd3 {[%clk 0:00:02.8]} 35... Nf4+ {[%clk 0:00:35.5]}
36. Kc3 {[%clk 0:00:03.3]} 36... Nd5+ {[%clk 0:00:34.9]} 37. Kd3 {[%clk
0:00:03.6]} 37... Qxg2 {[%clk 0:00:27]} 38. Qxa7 {[%clk 0:00:04]} 38... Qxf2
{[%clk 0:00:27.4]} 39. Qb7 {[%clk 0:00:02.5]} 39... Qe3+ {[%clk 0:00:27.2]} 40.
Kc2 {[%clk 0:00:02.7]} 40... Qc3+ {[%clk 0:00:27.8]} 41. Kd1 {[%clk 0:00:02.9]}
41... Qxd4 {[%clk 0:00:28.2]} 42. Qxb5 {[%clk 0:00:02.9]} 42... Nc3+ {[%clk
0:00:28.7]} 0-1

[Event "*** Titled Tuesday Blitz"]
[Site "Chess.com"]
[Date "2021.03.16"]
[Round "4"]
[White "Zhigalko_Sergei"]
[Black "MatyChess1"]
[Result "1-0"]
[WhiteElo "2940"]
[BlackElo "2608"]
[TimeControl "180+1"]
[EndTime "10:38:28 PDT"]
[Termination "Zhigalko_Sergei won on time"]

1. e4 {[%clk 0:02:59.7]} 1... c5 {[%clk 0:02:59.4]} 2. Nf3 {[%clk 0:02:59.6]}
2... d6 {[%clk 0:03:00.1]} 3. d4 {[%clk 0:02:58.9]} 3... cxd4 {[%clk 0:03:01]}
4. Qxd4 {[%clk 0:02:59.6]} 4... Nf6 {[%clk 0:03:01.9]} 5. Nc3 {[%clk 0:02:59.6]}
5... Nc6 {[%clk 0:03:01.9]} 6. Bb5 {[%clk 0:02:59.6]} 6... Bd7 {[%clk
0:03:02.8]} 7. Bxc6 {[%clk 0:02:59.7]} 7... Bxc6 {[%clk 0:03:03.7]} 8. Bg5
{[%clk 0:03:00]} 8... e6 {[%clk 0:03:04.3]} 9. O-O-O {[%clk 0:02:59.9]} 9... Be7
{[%clk 0:03:05]} 10. Rhe1 {[%clk 0:02:59.7]} 10... Qa5 {[%clk 0:03:05.3]} 11.
Kb1 {[%clk 0:02:59.7]} 11... O-O {[%clk 0:03:01.5]} 12. Qd2 {[%clk 0:02:59.7]}
12... Qa6 {[%clk 0:02:28.7]} 13. Nd4 {[%clk 0:02:55.1]} 13... Rfc8 {[%clk
0:02:26.4]} 14. f3 {[%clk 0:02:54.8]} 14... Be8 {[%clk 0:02:25.3]} 15. g4 {[%clk
0:02:53.7]} 15... b5 {[%clk 0:02:24.2]} 16. Nce2 {[%clk 0:02:52.5]} 16... Rc4
{[%clk 0:02:18]} 17. h4 {[%clk 0:02:15.8]} 17... Rac8 {[%clk 0:02:12.1]} 18. Nc1
{[%clk 0:02:02.8]} 18... Qb7 {[%clk 0:00:59.1]} 19. Ncb3 {[%clk 0:01:57.7]}
19... Qc7 {[%clk 0:00:38.4]} 20. Qa5 {[%clk 0:01:45.4]} 20... Qb8 {[%clk
0:00:35.1]} 21. Qd2 {[%clk 0:01:38.3]} 21... Qc7 {[%clk 0:00:34.8]} 22. h5
{[%clk 0:00:59.6]} 22... b4 {[%clk 0:00:32.9]} 23. h6 {[%clk 0:00:59.2]} 23...
g6 {[%clk 0:00:33.5]} 24. f4 {[%clk 0:00:26]} 24... e5 {[%clk 0:00:25.4]} 25.
fxe5 {[%clk 0:00:20.5]} 25... dxe5 {[%clk 0:00:25.5]} 26. Qf2 {[%clk 0:00:09.8]}
26... Nxg4 {[%clk 0:00:20.4]} 27. Qh4 {[%clk 0:00:09.7]} 27... Bxg5 {[%clk
0:00:19.9]} 28. Qxg5 {[%clk 0:00:05.4]} 28... exd4 {[%clk 0:00:13.5]} 29. Qxg4
{[%clk 0:00:05.8]} 29... Rxc2 {[%clk 0:00:13.9]} 30. Nxd4 {[%clk 0:00:06.2]}
30... Rc4 {[%clk 0:00:02.3]} 31. Nf5 {[%clk 0:00:04.5]} 1-0

[Event "*** Titled Tuesday Blitz"]
[Site "Chess.com"]
[Date "2021.03.16"]
[Round "4"]
[White "xberli"]
[Black "elegant285"]
[Result "1-0"]
[WhiteElo "2606"]
[BlackElo "2378"]
[TimeControl "180+1"]
[EndTime "10:38:29 PDT"]
[Termination "xberli won by resignation"]

1. e4 {[%clk 0:03:00.9]} 1... c6 {[%clk 0:02:59.5]} 2. d4 {[%clk 0:03:00.4]}
2... d5 {[%clk 0:03:00.2]} 3. e5 {[%clk 0:03:00.7]} 3... c5 {[%clk 0:03:00.4]}
4. dxc5 {[%clk 0:03:01.6]} 4... e6 {[%clk 0:03:00.1]} 5. a3 {[%clk 0:03:01.8]}
5... Bxc5 {[%clk 0:03:00.4]} 6. b4 {[%clk 0:03:02]} 6... Be7 {[%clk 0:03:01]} 7.
Bd3 {[%clk 0:03:00.8]} 7... a5 {[%clk 0:02:59]} 8. bxa5 {[%clk 0:02:49.8]} 8...
Nc6 {[%clk 0:02:49.6]} 9. Nf3 {[%clk 0:02:45.9]} 9... Qxa5+ {[%clk 0:02:38.6]}
10. Bd2 {[%clk 0:02:43.2]} 10... Qc7 {[%clk 0:02:39]} 11. O-O {[%clk 0:02:42.6]}
11... f6 {[%clk 0:02:29.2]} 12. exf6 {[%clk 0:02:12.3]} 12... Bxf6 {[%clk
0:02:20.7]} 13. Nc3 {[%clk 0:01:59.8]} 13... Nge7 {[%clk 0:02:19.2]} 14. Nb5
{[%clk 0:01:53.7]} 14... Qd8 {[%clk 0:02:04.6]} 15. c4 {[%clk 0:01:40.4]} 15...
O-O {[%clk 0:02:01.3]} 16. Qc2 {[%clk 0:01:37.7]} 16... h6 {[%clk 0:01:41.4]}
17. Rad1 {[%clk 0:01:31.6]} 17... Bd7 {[%clk 0:01:21.2]} 18. Rfe1 {[%clk
0:01:24.3]} 18... Kh8 {[%clk 0:01:15.9]} 19. Bc1 {[%clk 0:01:19.4]} 19... Qb6
{[%clk 0:00:54.6]} 20. Qe2 {[%clk 0:01:07.3]} 20... Na5 {[%clk 0:00:40.9]} 21.
Be3 {[%clk 0:00:57.5]} 21... Qd8 {[%clk 0:00:32.8]} 22. c5 {[%clk 0:00:49.6]}
22... e5 {[%clk 0:00:24.7]} 23. Bb1 {[%clk 0:00:44.8]} 23... Bc6 {[%clk
0:00:21.7]} 24. Nd6 {[%clk 0:00:39.9]} 24... b6 {[%clk 0:00:19.4]} 25. Qc2
{[%clk 0:00:34.9]} 25... e4 {[%clk 0:00:18.7]} 26. Nd4 {[%clk 0:00:27.4]} 26...
bxc5 {[%clk 0:00:16.9]} 27. Qxc5 {[%clk 0:00:26.1]} 27... Rb8 {[%clk 0:00:11.4]}
28. Nxc6 {[%clk 0:00:23.3]} 28... Naxc6 {[%clk 0:00:12.3]} 29. Nxe4 {[%clk
0:00:21.5]} 29... Qc7 {[%clk 0:00:07]} 30. Nxf6 {[%clk 0:00:20.6]} 30... Rxf6
{[%clk 0:00:07.9]} 31. Qc2 {[%clk 0:00:20.1]} 31... Nf5 {[%clk 0:00:05.7]} 32.
Bc5 {[%clk 0:00:19.1]} 32... Rd8 {[%clk 0:00:04.1]} 33. a4 {[%clk 0:00:18.4]}
33... Na5 {[%clk 0:00:02.3]} 34. Bb4 {[%clk 0:00:16.5]} 34... Nc4 {[%clk
0:00:01.9]} 35. Bc3 {[%clk 0:00:16]} 35... Qf7 {[%clk 0:00:01.7]} 36. Bxf6
{[%clk 0:00:15.6]} 36... Qxf6 {[%clk 0:00:02.6]} 37. Qxf5 {[%clk 0:00:15.5]} 1-0

[Event "*** Titled Tuesday Blitz"]
[Site "Chess.com"]
[Date "2021.03.16"]
[Round "4"]
[White "Vincent_Vega95"]
[Black "Sychev_Klementy"]
[Result "0-1"]
[WhiteElo "2750"]
[BlackElo "2884"]
[TimeControl "180+1"]
[EndTime "10:38:30 PDT"]
[Termination "Sychev_Klementy won by resignation"]

1. d4 {[%clk 0:02:59.8]} 1... Nf6 {[%clk 0:02:56.1]} 2. c4 {[%clk 0:03:00.3]}
2... g6 {[%clk 0:02:56.2]} 3. Nc3 {[%clk 0:03:00.7]} 3... d5 {[%clk 0:02:56.5]}
4. Nf3 {[%clk 0:03:00.3]} 4... Bg7 {[%clk 0:02:56.1]} 5. cxd5 {[%clk 0:03:00.7]}
5... Nxd5 {[%clk 0:02:56]} 6. e4 {[%clk 0:03:01.4]} 6... Nxc3 {[%clk 0:02:56.2]}
7. bxc3 {[%clk 0:03:02.3]} 7... c5 {[%clk 0:02:56.6]} 8. Be3 {[%clk 0:03:02.9]}
8... Qa5 {[%clk 0:02:55.9]} 9. Qd2 {[%clk 0:03:02.9]} 9... Nc6 {[%clk
0:02:46.7]} 10. Rc1 {[%clk 0:02:59.7]} 10... cxd4 {[%clk 0:02:46.8]} 11. cxd4
{[%clk 0:02:59.8]} 11... Qxd2+ {[%clk 0:02:46.2]} 12. Kxd2 {[%clk 0:02:55.8]}
12... O-O {[%clk 0:02:42.1]} 13. d5 {[%clk 0:02:47.3]} 13... Rd8 {[%clk
0:02:40.7]} 14. Ke1 {[%clk 0:02:15.8]} 14... Nb4 {[%clk 0:02:34.8]} 15. a3
{[%clk 0:01:55]} 15... Na2 {[%clk 0:02:33.8]} 16. Rc2 {[%clk 0:01:49.1]} 16...
Nc3 {[%clk 0:02:32.6]} 17. Bd3 {[%clk 0:01:44.3]} 17... f5 {[%clk 0:02:12.2]}
18. Ng5 {[%clk 0:00:43.3]} 18... h6 {[%clk 0:01:48.6]} 19. Bd2 {[%clk
0:00:43.5]} 19... Nb1 {[%clk 0:01:45.7]} 20. Nf3 {[%clk 0:00:35.4]} 20... Nxd2
{[%clk 0:01:38.7]} 21. Nxd2 {[%clk 0:00:35.3]} 21... e6 {[%clk 0:01:25.9]} 22.
Bc4 {[%clk 0:00:30.9]} 22... exd5 {[%clk 0:01:12.1]} 23. Bxd5+ {[%clk
0:00:31.1]} 23... Kh7 {[%clk 0:00:59.8]} 24. f3 {[%clk 0:00:24.3]} 24... Rb8
{[%clk 0:00:58.6]} 25. Ke2 {[%clk 0:00:20.5]} 25... Bd7 {[%clk 0:00:49.3]} 26.
Rhc1 {[%clk 0:00:20.4]} 26... Bb5+ {[%clk 0:00:46]} 27. Ke3 {[%clk 0:00:18.3]}
27... Rd7 {[%clk 0:00:36]} 28. Rc7 {[%clk 0:00:18.1]} 28... Rbd8 {[%clk
0:00:29.8]} 29. Rxd7 {[%clk 0:00:18.5]} 29... Rxd7 {[%clk 0:00:29.6]} 30. Rc8
{[%clk 0:00:19.2]} 30... h5 {[%clk 0:00:21.3]} 31. Nb3 {[%clk 0:00:08.5]} 31...
fxe4 {[%clk 0:00:16.6]} 32. fxe4 {[%clk 0:00:08.5]} 32... b6 {[%clk 0:00:11.3]}
33. Nd4 {[%clk 0:00:08.3]} 33... Ba6 {[%clk 0:00:11.6]} 34. Ne6 {[%clk
0:00:08.4]} 34... Bxc8 {[%clk 0:00:11.1]} 35. Ng5+ {[%clk 0:00:04.7]} 35... Kh6
{[%clk 0:00:11.4]} 36. Nf7+ {[%clk 0:00:05.3]} 36... Rxf7 {[%clk 0:00:11.6]} 37.
Bxf7 {[%clk 0:00:06.1]} 37... Be5 {[%clk 0:00:11.9]} 0-1